lending/lending_fUSD_20251116
["ID","MTS","AMOUNT","RATE_DAILY","PERIOD"]
[394107047,1763289039569,-155.15855745,0.00017997,2]
[394107048,1763289039578,-211.34243174,0.00017999,2]
[394107049,1763289039587,-500.0,0.00017999,2]
[394107050,1763289039597,-315.85904182,0.00017999,2]
[394107051,1763289039607,-624.08107286,0.00017999,2]
[394107052,1763289039616,-253.45954771,0.00017999,2]
[394107053,1763289039626,-557.48703647,0.00017999,2]
[394107054,1763289039635,-196.97575763,0.00017999,2]
[394107055,1763289039644,-500.0,0.00017999,2]
[394107056,1763289039653,-500.0,0.00017999,2]
[394107057,1763289039663,-500.0,0.00017999,2]
[394107058,1763289039672,-445.34948548,0.00017999,2]
[394107059,1763289039681,-1233562.10427827,0.00018,2]
[394107060,1763289039693,-9421.3354227,0.00018,2]
[394107073,1763289042601,-414.81411673,0.00018,2]
[394107074,1763289042613,-295.38614182,0.00018,2]
[394107075,1763289042631,-729.36723541,0.00018,2]
[394107080,1763289042919,-8033.62988368,0.00018,2]
[394107090,1763289045607,-986.89522002,0.00018,2]
[394107091,1763289045770,-723.82540946,0.00018,2]
[394107114,1763289235641,-1224.38653767,0.0001783,2]
[394107115,1763289235664,-500.0,0.00017973,2]
[394107116,1763289235686,-500.0,0.00017973,2]
[394107117,1763289235708,-397.31767821,0.00017973,2]
[394107118,1763289235729,-164.80015197,0.00017973,2]
[394107119,1763289235752,-454.9694918,0.00017973,2]
[394107120,1763289235773,-498.59718969,0.00017973,2]
[394107121,1763289235796,-151.0,0.00017989,2]
[394107122,1763289235819,-151.0,0.00017989,2]
[394107123,1763289235841,-151.0,0.00017989,2]
[394107124,1763289235863,-151.0,0.00017989,2]
[394107125,1763289235886,-229.08778111,0.00017989,2]
[394107126,1763289235909,-300.0,0.00018,2]
[394107129,1763289262041,-100000.0,0.00018,2]
[394107130,1763289267577,-2946.34760164,0.00018,2]
[394107131,1763289267601,-151.0,0.00018,2]
[394107143,1763289334943,28791.1715007,0.00017981,2]
[394107144,1763289377769,2991.5648614,0.00017981,2]
[394107145,1763289393449,151.0,0.00018,2]
[394107146,1763289394021,151.0,0.00018,2]
[394107147,1763289419198,294.107666,0.00030137,120]
[394107148,1763289419407,151.0,0.00018,2]
[394107149,1763289420299,197.13040131,0.00018,2]
[394107151,1763289462873,230.1725864,0.00017981,2]
[394107152,1763289505851,519.09,0.00030136,120]
[394107153,1763289506594,1097.8859008,0.00017981,2]
[394107154,1763289577621,250.0,0.00017,2]
[394107161,1763289740691,214.02156374,0.00017776,2]
[394107165,1763289924755,500.0,0.00017982,2]
[394107166,1763289936280,9035.98843626,0.00017981,2]
[394107167,1763289936303,10000.01,0.00017981,2]
[394107168,1763289936330,54540.25534765,0.00017981,2]
[394107169,1763289936354,48063.11598659,0.00017981,2]
[394107172,1763290065099,4664.3925888,0.00017981,2]
[394107177,1763290108583,3091.3218975,0.00017981,2]
[394107178,1763290114326,150.82,0.00027955,120]
[394107182,1763290140610,150.0,0.00030136,120]
[394107185,1763290197428,2244.2955137,0.00017981,2]
[394107186,1763290197449,255.7069863,0.00017981,2]
[394107192,1763290223050,222.22926538,0.00017697,2]
[394107216,1763290237000,3458.7452356,0.00017981,2]
[394107234,1763290237528,-1299.71295,0.0001854,2]
[394107236,1763290237537,-1299.71296,0.0001855,2]
[394107237,1763290237547,-1299.71296,0.0001861,2]
[394107238,1763290237556,-150.82,0.00018637,2]
[394107240,1763290237565,-1200.0,0.00018671,2]
[394107241,1763290237574,-3448.41744013,0.00018672,2]
[394107244,1763290237635,-1851.17627142,0.00018672,2]
[394107245,1763290237643,-300.0,0.00018679,2]
[394107246,1763290237652,-300.0,0.00018679,2]
[394107247,1763290237662,-1299.71296,0.0001868,2]
[394107248,1763290237672,-1000.0,0.00018733,2]
[394107250,1763290237681,-178.18313914,0.00018733,2]
[394107251,1763290237691,-500.0,0.00018733,2]
[394107252,1763290237700,-500.0,0.00018733,2]
[394107253,1763290237709,-500.0,0.00018733,2]
[394107255,1763290237718,-500.0,0.00018733,2]
[394107256,1763290237726,-500.0,0.00018733,2]
[394107257,1763290237735,-288.30306604,0.00018733,2]
[394107258,1763290237744,-500.0,0.00018733,2]
[394107259,1763290237753,-490.30817342,0.00018733,2]
[394107260,1763290237761,-500.0,0.00018733,2]
[394107262,1763290237770,-500.0,0.00018733,2]
[394107263,1763290237779,-8233.99153188,0.00018734,2]
[394107282,1763290239828,-8560.20192782,0.00018734,2]
[394107283,1763290244480,-648.93851997,0.00018734,2]
[394107284,1763290244492,-466.7936093,0.00018734,2]
[394107285,1763290244711,-0.96634639,0.00018734,2]
[394107287,1763290245693,-37907.99999933,0.00018734,2]
[394107288,1763290245705,-2158.22510503,0.00018734,2]
[394107289,1763290245750,-11154.69196784,0.00018734,2]
[394107290,1763290245760,-11994.97478811,0.00018734,2]
[394107291,1763290245771,-462.70739025,0.00018734,2]
[394107292,1763290245810,-7835.60501169,0.00018734,2]
[394107293,1763290245821,-474.4368,0.00018734,2]
[394107294,1763290245970,-794.30477733,0.00018734,2]
[394107484,1763290825969,366.69491799,0.00017176,2]
[394107522,1763291340769,150.0,0.00030135,120]
[394107524,1763291343588,-1155.3,0.00016438,2]
[394107525,1763291343618,-166.66,0.00017489,2]
[394107526,1763291343648,-166.66,0.00017857,2]
[394107527,1763291343677,-309.605,0.00017998,2]
[394107528,1763291343705,-207.09757395,0.00018082,2]
[394107529,1763291343737,-300.0,0.00018082,2]
[394107530,1763291343766,-195.0,0.00018082,2]
[394107531,1763291343796,-166.66,0.00018225,2]
[394107532,1763291343824,-152.75,0.0001823,2]
[394107533,1763291343853,-934.02,0.00018256,2]
[394107534,1763291343881,-300.0,0.00018264,2]
[394107535,1763291343914,-692.5048521,0.00018264,2]
[394107536,1763291344091,-507.4951479,0.00018264,2]
[394107537,1763291344121,-291.80852101,0.00018265,2]
[394107538,1763291344154,-155.67,0.00018355,2]
[394107539,1763291344182,-155.67,0.00018355,2]
[394107540,1763291344212,-155.67,0.00018355,2]
[394107541,1763291344241,-163.62,0.00018355,2]
[394107542,1763291344273,-498.92313038,0.00018364,2]
[394107544,1763291349856,-1018.35665685,0.00018365,2]
[394107545,1763291352577,-10000.01,0.00018365,2]
[394107546,1763291352754,-10000.01,0.00018365,2]
[394107565,1763291432028,-250.0,0.00017,2]
[394107566,1763291432038,-300.0,0.00018264,2]
[394107567,1763291432048,-1200.0,0.00018264,2]
[394107568,1763291432057,-9927.53554036,0.00018265,2]
[394107569,1763291432066,-216.09405258,0.00018265,2]
[394107570,1763291432076,-5645.7,0.00018328,2]
[394107571,1763291432086,-155.67,0.00018355,2]
[394107572,1763291432095,-163.62,0.00018355,2]
[394107573,1763291432105,-717.30804717,0.00018364,2]
[394107574,1763291432114,-33188.33615854,0.00018365,2]
[394107596,1763291439698,-58967.59340363,0.00018365,2]
[394107673,1763291697047,816.42,0.00013699,2]
[394107677,1763291816625,-200.0,0.0001779,2]
[394107678,1763291816654,-200.0,0.00017848,2]
[394107679,1763291816682,-1000.0,0.00018,2]
[394107680,1763291816710,-433.022,0.00018,2]
[394107681,1763291816739,-300.0,0.00018264,2]
[394107682,1763291816768,-964.33165965,0.00018265,2]
[394107683,1763291816917,-2988.8826807,0.00018265,2]
[394107684,1763291819541,-816.42,0.00018265,2]
[394107685,1763291819569,-194.48464734,0.00018265,2]
[394107686,1763291819614,-7978.20070532,0.00018265,2]
[394107705,1763292013076,4854.17,0.00015,2]
[394107796,1763292363672,415.2,0.00030137,120]
[394107800,1763292414711,4737.81952547,0.000162,5]
[394107819,1763292540868,150.0,0.00030136,120]
[394107930,1763292557282,314.30784315,0.0003013,120]
[394108164,1763292631959,-1000.0,0.000176,2]
[394108165,1763292631969,-171.99217336,0.00017736,2]
[394108166,1763292631979,-999.0,0.00017776,3]
[394108167,1763292631989,-700.0,0.000178,6]
[394108168,1763292631998,-1395.63926013,0.00017836,2]
[394108169,1763292632024,-1355.36073987,0.00017836,2]
[394108170,1763292632033,-1400.0,0.000179,6]
[394108171,1763292632043,-500.0,0.00017973,2]
[394108172,1763292632052,-300.0,0.00017981,2]
[394108173,1763292632062,-300.0,0.00017981,2]
[394108174,1763292632072,-1200.0,0.00017981,2]
[394108175,1763292632081,-4551.53926013,0.00017982,2]
[394108176,1763292632096,-203.84462143,0.00017982,2]
[394108177,1763292632106,-963.12208371,0.00017982,2]
[394108178,1763292632129,-627.03415411,0.00017982,2]
[394108179,1763292632141,-492.23657152,0.00017982,2]
[394108180,1763292632187,-994.12251902,0.00017982,2]
[394108181,1763292632198,-1043.45827981,0.00017982,2]
[394108182,1763292632209,-326.03172292,0.00017982,2]
[394108183,1763292632220,-3739.12861749,0.00017982,2]
[394108184,1763292632229,-155.68,0.0001799,2]
[394108185,1763292632238,-1200.0,0.00017999,2]
[394108187,1763292632247,-500.0,0.00017999,2]
[394108189,1763292632256,-500.0,0.00017999,2]
[394108190,1763292632266,-490.30817342,0.00017999,2]
[394108193,1763292632277,-64219.88688191,0.00018,2]
[394108197,1763292637962,-422.64413948,0.00018,2]
[394108198,1763292638017,-664.98932389,0.00018,2]
[394108199,1763292638076,-482.21751,0.00018,2]
[394108200,1763292638087,-311.72454351,0.00018,2]
[394108207,1763292639882,-4156.19990002,0.00018,2]
[394108208,1763292639893,-873.08264691,0.00018,2]
[394108209,1763292639933,-682.75,0.00018,2]
[394108210,1763292639944,-2172.71,0.00018,2]
[394108211,1763292640094,-3990.95930724,0.00018,2]
[394108212,1763292640255,-839.15,0.00018,2]
[394108214,1763292640266,-1634.11084078,0.00018,2]
[394108254,1763292646161,-1418.83999992,0.00018,2]
[394108255,1763292646334,-1155.000003,0.00018,2]
[394108256,1763292646392,-22890.6252674,0.00018,2]
[394108257,1763292646403,-30212.72686233,0.00018,2]
[394108258,1763292646414,-25833.04004594,0.00018,2]
[394108259,1763292646425,-57600.00000001,0.00018,2]
[394108260,1763292646448,-4834.35590322,0.00018,2]
[394108741,1763292660142,315.0,0.00030137,120]
[394108822,1763293203332,155.19434225,0.00030136,120]
[394108911,1763293550327,-300.0,0.00017283,2]
[394108912,1763293550355,-1200.0,0.00017283,2]
[394108913,1763293550386,-300.0,0.00017283,2]
[394108914,1763293550490,-1545.84,0.00017284,2]
[394108916,1763293556291,-10000.01,0.00017284,2]
[394108917,1763293562331,-10000.01,0.00017284,2]
[394108918,1763293568447,-4773.7,0.00017284,2]
[394108919,1763293568482,-452.61,0.00017419,2]
[394108920,1763293571603,-547.39,0.00017419,2]
[394108921,1763293571632,-150.82,0.00017539,2]
[394108922,1763293571661,-150.0,0.00017682,2]
[394108923,1763293571996,-8303.59,0.00017728,2]
[394108925,1763293574617,-3620.64464896,0.00017728,2]
[394108926,1763293574639,-2758.72070208,0.00017728,2]
[394108927,1763293577941,-150.0,0.0001733,2]
[394108928,1763293577970,-200.0,0.00017856,2]
[394108929,1763293577997,-151.40785574,0.00017905,7]
[394108930,1763293578024,-1630.57373478,0.00017907,2]
[394108931,1763293578088,-5736.04681896,0.00017907,2]
[394108944,1763293740978,150.0,0.00030136,120]
[394108969,1763293832297,-479.6015,0.00017319,2]
[394108970,1763293832307,-250.0,0.00017421,2]
[394108971,1763293832316,-214.02156374,0.00017674,2]
[394108972,1763293832325,-649.85647,0.0001782,2]
[394108973,1763293832335,-700.0,0.000179,6]
[394108974,1763293832344,-300.0,0.00017906,2]
[394108975,1763293832353,-1200.0,0.00017906,2]
[394108976,1763293832363,-150.0,0.00017906,2]
[394108977,1763293832372,-4929.34896572,0.00017907,2]
[394108978,1763293832382,-6629.95849842,0.00017907,2]
[394108979,1763293832391,-288.97754983,0.00017907,2]
[394108980,1763293832400,-207.618808,0.00017907,2]
[394108983,1763293832410,-3072.3752072,0.0001791,2]
[394108985,1763293832419,-65536.08785938,0.0001791,2]
[394108987,1763293832432,-19738.69002172,0.0001791,2]
[394108989,1763293832450,-29094.89021794,0.0001791,2]
[394109206,1763293838145,-15426.01059136,0.0001791,2]
[394109207,1763293838155,-446.55512875,0.00017973,2]
[394109208,1763293838165,-500.0,0.00017973,2]
[394109209,1763293838175,-500.0,0.00017973,2]
[394109210,1763293838185,-162.03,0.0001799,2]
[394109211,1763293838195,-161.0,0.0001799,2]
[394109212,1763293838204,-1000.0,0.00017999,2]
[394109213,1763293838214,-247.684,0.00017999,2]
[394109214,1763293838223,-288.30306604,0.00017999,2]
[394109215,1763293838234,-178.18313914,0.00017999,2]
[394109216,1763293838244,-500.0,0.00017999,2]
[394109217,1763293838253,-11127.23292185,0.00018,2]
[394109218,1763293838265,-5739.18585998,0.00018,2]
[394109219,1763293838278,-28057.1412,0.00018,2]
[394109231,1763293840133,-500.0,0.00017999,2]
[394109232,1763293840143,-500.0,0.00017999,2]
[394109233,1763293840152,-500.0,0.00017999,2]
[394109234,1763293840161,-500.0,0.00017999,2]
[394109235,1763293840171,-200.0,0.00017999,2]
[394109236,1763293840182,-153.87991429,0.00018,2]
[394109237,1763293840394,-304.9245,0.00018,2]
[394109365,1763294440801,-1084.08,0.00016438,2]
[394109366,1763294440833,-166.66,0.00016836,2]
[394109367,1763294440867,-500.0,0.00017092,2]
[394109368,1763294440899,-206.46,0.00017187,2]
[394109369,1763294440934,-166.66,0.0001719,2]
[394109370,1763294440964,-166.66,0.00017545,2]
[394109371,1763294440992,-222.22926538,0.00017753,2]
[394109372,1763294441021,-200.0,0.00017856,2]
[394109373,1763294441050,-2235.88603031,0.00017858,2]
[394109374,1763294441262,-102.73940862,0.00017899,2]
[394109375,1763294447120,-1097.26059138,0.00017899,2]
[394109376,1763294447148,-300.0,0.00017899,2]
[394109377,1763294447177,-193.0,0.00017899,2]
[394109378,1763294447208,-166.66,0.00017899,2]
[394109379,1763294447236,-690.5177594,0.000179,2]
[394109380,1763294447263,-1787.6261685,0.000179,2]
[394109381,1763294447388,-1529.88096144,0.000179,2]
[394109394,1763294634071,825.6,0.00013699,2]
[394109405,1763294941431,150.0,0.00030135,120]
[394109412,1763294959326,-300.0,0.00016938,2]
[394109413,1763294959382,-8574.41,0.00016939,2]
[394109414,1763294959546,-10000.01,0.00016939,2]
[394109415,1763294962246,-10000.01,0.00016939,2]
[394109416,1763294968405,-10000.01,0.00016939,2]
[394109427,1763294974549,-1525.13,0.00016939,2]
[394109428,1763294974572,-6949.75,0.00016939,2]
[394109429,1763294987700,500.0,0.00015,2]
[394109435,1763295032288,-250.0,0.00017,2]
[394109436,1763295032297,-713.4625,0.00017092,2]
[394109437,1763295032309,-1286.5375,0.00017092,2]
[394109438,1763295032317,-200.0,0.00017111,2]
[394109439,1763295032326,-300.0,0.00017132,2]
[394109440,1763295032335,-498.92313038,0.00017132,2]
[394109441,1763295032344,-300.0,0.00017132,2]
[394109442,1763295032353,-1200.0,0.00017132,2]
[394109443,1763295032363,-300.0,0.00017132,2]
[394109444,1763295032371,-193.48,0.00017133,2]
[394109445,1763295032380,-523.70936962,0.00017133,2]
[394109446,1763295032449,-874.38,0.00017133,2]
[394109504,1763295038319,-960.35,0.00017133,2]
[394109588,1763295040543,-530.6,0.00017133,2]
[394109607,1763295043513,-346.12404753,0.00017133,2]
[394109608,1763295043525,-1128.1501817,0.00017133,2]
[394109609,1763295043536,-5682.12131206,0.00017133,2]
[394109610,1763295043731,-751.75529865,0.00017133,2]
[394109611,1763295043743,-4847.06400167,0.00017133,2]
[394109612,1763295043753,-99239.34095631,0.00017133,2]
[394109613,1763295043841,-867.26068256,0.00017133,2]
[394109621,1763295046490,-517.88834001,0.00017133,2]
[394109628,1763295423483,-999.0,0.00016691,3]
[394109629,1763295423512,-2274.41,0.00016917,2]
[394109630,1763295423540,-200.0,0.00016926,2]
[394109631,1763295423569,-454.0,0.00016992,2]
[394109632,1763295423597,-200.0,0.00016996,2]
[394109633,1763295423626,-545.19,0.00017017,2]
[394109634,1763295423978,-200.81,0.00017017,2]
[394109635,1763295426355,-454.0,0.00017017,2]
[394109636,1763295426385,-3107.16460638,0.00017018,2]
[394109637,1763295426429,-2877.68078724,0.00017018,2]
[394109638,1763295433336,-4810.22485705,0.00017018,2]
[394109639,1763295433367,-90.22886462,0.00017018,2]
[394109640,1763295433407,-199.10255666,0.00017018,2]
[394109655,1763296013567,5000.00158916,0.000162,5]
[394109658,1763296117402,10000.01,0.00015,3]
[394109659,1763296117426,10000.01,0.00015,3]
[394109660,1763296117448,10000.01,0.00015,3]
[394109661,1763296117471,8102.39792149,0.00015,3]
[394109662,1763296118118,1897.61207851,0.0001,2]
[394109663,1763296118140,4970.15474273,0.0001,2]
[394109664,1763296121430,961.81641887,0.00013699,2]
[394109665,1763296140275,150.0,0.00030134,120]
[394109945,1763296231531,-1000.0,0.0001612,2]
[394109947,1763296231541,-174.38893912,0.00016402,2]
[394109949,1763296231550,-2035.31,0.00016433,2]
[394109951,1763296231559,-300.0,0.00016502,2]
[394109953,1763296231568,-147.13001724,0.00016572,2]
[394109956,1763296231587,-152.86998276,0.00016572,2]
[394109958,1763296231596,-191.12,0.00016712,2]
[394109960,1763296231605,-200.0,0.00016882,2]
[394109962,1763296231615,-417.52873344,0.000169,6]
[394109964,1763296231626,-182.47126656,0.000169,6]
[394109966,1763296231635,-151.0,0.00016937,2]
[394109968,1763296231644,-151.0,0.00016947,2]
[394109970,1763296231654,-151.0,0.00016965,2]
[394109972,1763296231663,-64.89023688,0.00016978,2]
[394109974,1763296231676,-86.10976312,0.00016978,2]
[394109976,1763296231689,-280.02219393,0.00016994,2]
[394109978,1763296231701,-827.1,0.00016994,2]
[394109985,1763296231762,-92.87780607,0.00016994,2]
[394109987,1763296231772,-300.0,0.00016994,2]
[394109989,1763296231782,-160.18347773,0.00016995,2]
[394110012,1763296237408,-250.0,0.00016094,2]
[394110013,1763296237418,-5160.84135269,0.00016995,2]
[394110014,1763296237427,-162.87099718,0.00017,2]
[394110015,1763296237437,-2300.0,0.00017,2]
[394110016,1763296237447,-6184.18092479,0.00017008,2]
[394110017,1763296237456,-206.30539188,0.00017018,2]
[394110018,1763296237465,-239.98478964,0.00017073,2]
[394110019,1763296237475,-500.0,0.00017073,2]
[394110020,1763296237484,-654.63,0.00017085,3]
[394110021,1763296237493,-953.95,0.00017085,2]
[394110022,1763296237503,-953.95,0.0001709,2]
[394110023,1763296237512,-155.15855745,0.00017092,2]
[394110024,1763296237521,-557.48703647,0.00017094,2]
[394110025,1763296237531,-253.45954771,0.00017094,2]
[394110026,1763296237541,-196.97575763,0.00017094,2]
[394110028,1763296237549,-500.0,0.00017094,2]
[394110029,1763296237559,-500.0,0.00017094,2]
[394110030,1763296237568,-500.0,0.00017094,2]
[394110031,1763296237578,-250.81453693,0.00017094,2]
[394110032,1763296237588,-250.0,0.00017094,2]
[394110033,1763296237605,-337589.5097223,0.00017095,2]
[394110034,1763296237615,-10754.9251575,0.00017095,2]
[394110035,1763296237624,-293.5888337,0.000171,2]
[394110037,1763296237634,-200.0,0.00017108,2]
[394110038,1763296237643,-151.0,0.00017108,2]
[394110040,1763296237653,-151.0,0.00017108,2]
[394110041,1763296237663,-151.0,0.00017108,2]
[394110042,1763296237673,-151.0,0.00017108,2]
[394110043,1763296237682,-151.0,0.00017108,2]
[394110044,1763296237695,-151.0,0.00017108,2]
[394110045,1763296237705,-151.0,0.00017108,2]
[394110046,1763296237714,-151.0,0.00017108,2]
[394110047,1763296237723,-151.0,0.00017108,2]
[394110048,1763296237734,-151.0,0.00017108,2]
[394110049,1763296237743,-151.0,0.00017108,2]
[394110050,1763296237753,-953.95,0.00017108,2]
[394110051,1763296237763,-953.95,0.00017108,2]
[394110052,1763296237773,-953.95,0.00017108,2]
[394110053,1763296237782,-163.62,0.00017108,2]
[394110054,1763296237791,-33278.5552376,0.00017118,2]
[394110055,1763296237801,-325231.7228657,0.00017118,2]
[394110056,1763296237810,-838.5041264,0.00017118,2]
[394110057,1763296237820,-27828.5784088,0.00017118,2]
[394110058,1763296237829,-274.475119,0.00017118,2]
[394110059,1763296237838,-151.0,0.00017118,2]
[394110060,1763296237847,-152.793394,0.00017118,2]
[394110061,1763296237857,-151.0,0.00017118,2]
[394110062,1763296237867,-151.0,0.00017118,2]
[394110063,1763296237876,-153.714524,0.00017118,2]
[394110064,1763296237885,-151.0,0.00017118,2]
[394110065,1763296237894,-151.0,0.00017118,2]
[394110066,1763296237903,-151.0,0.00017118,2]
[394110067,1763296237912,-213.900215,0.00017118,2]
[394110068,1763296237922,-213.900215,0.00017118,2]
[394110069,1763296237932,-151.0,0.00017118,2]
[394110070,1763296237941,-213.900215,0.00017118,2]
[394110071,1763296237950,-151.0,0.00017118,2]
[394110072,1763296237960,-213.900215,0.00017118,2]
[394110073,1763296237969,-151.0,0.00017118,2]
[394110074,1763296237979,-151.0,0.00017118,2]
[394110075,1763296237988,-151.0,0.00017118,2]
[394110076,1763296237998,-151.0,0.00017118,2]
[394110077,1763296238007,-151.0,0.00017118,2]
[394110078,1763296238017,-225.770558,0.00017118,2]
[394110079,1763296238026,-151.0,0.00017118,2]
[394110080,1763296238036,-151.0,0.00017118,2]
[394110081,1763296238047,-151.0,0.00017118,2]
[394110082,1763296238056,-151.0,0.00017118,2]
[394110083,1763296238066,-151.0,0.00017118,2]
[394110084,1763296238075,-151.0,0.00017118,2]
[394110085,1763296238085,-151.0,0.00017118,2]
[394110086,1763296238095,-154.259977,0.00017118,2]
[394110087,1763296238104,-151.0,0.00017118,2]
[394110088,1763296238114,-151.0,0.00017118,2]
[394110089,1763296238123,-151.0,0.00017118,2]
[394110090,1763296238133,-181.103134,0.00017118,2]
[394110091,1763296238142,-151.0,0.00017118,2]
[394110092,1763296238345,-151.0,0.00017118,2]
[394110093,1763296238354,-151.0,0.00017118,2]
[394110094,1763296238364,-186.668261,0.00017118,2]
[394110095,1763296238374,-151.0,0.00017118,2]
[394110096,1763296238383,-186.668261,0.00017118,2]
[394110097,1763296238392,-186.668261,0.00017118,2]
[394110098,1763296238401,-186.668261,0.00017118,2]
[394110099,1763296238412,-1406.966798,0.00017118,2]
[394110100,1763296238421,-1406.966798,0.00017118,2]
[394110101,1763296238430,-1406.966798,0.00017118,2]
[394110102,1763296238440,-151.0,0.00017118,2]
[394110103,1763296238449,-1406.966798,0.00017118,2]
[394110104,1763296238459,-151.755537,0.00017118,2]
[394110105,1763296238468,-151.755537,0.00017118,2]
[394110106,1763296238478,-151.755537,0.00017118,2]
[394110107,1763296238487,-151.755537,0.00017118,2]
[394110108,1763296238496,-151.0,0.00017118,2]
[394110109,1763296238506,-151.0,0.00017118,2]
[394110110,1763296238515,-151.0,0.00017118,2]
[394110111,1763296238524,-152.896676,0.00017118,2]
[394110112,1763296238534,-151.0,0.00017118,2]
[394110113,1763296238543,-151.0,0.00017118,2]
[394110114,1763296238553,-151.0,0.00017118,2]
[394110115,1763296238562,-151.0,0.00017118,2]
[394110116,1763296238572,-151.0,0.00017118,2]
[394110117,1763296238581,-151.0,0.00017118,2]
[394110118,1763296238591,-195.504398,0.00017118,2]
[394110119,1763296238600,-195.504398,0.00017118,2]
[394110120,1763296238609,-195.504398,0.00017118,2]
[394110121,1763296238619,-195.504398,0.00017118,2]
[394110122,1763296238629,-334.897074,0.00017118,2]
[394110123,1763296238638,-334.897074,0.00017118,2]
[394110124,1763296238648,-151.0,0.00017118,2]
[394110125,1763296238657,-151.0,0.00017118,2]
[394110126,1763296238667,-151.0,0.00017118,2]
[394110127,1763296238676,-152.971918,0.00017118,2]
[394110128,1763296238690,-151.0,0.00017118,2]
[394110129,1763296238699,-151.0,0.00017118,2]
[394110130,1763296238708,-240.358672,0.00017118,2]
[394110131,1763296238719,-334.897074,0.00017118,2]
[394110132,1763296238729,-334.897074,0.00017118,2]
[394110133,1763296238738,-334.897074,0.00017118,2]
[394110134,1763296238748,-334.897074,0.00017118,2]
[394110135,1763296238757,-151.0,0.00017118,2]
[394110136,1763296238769,-151.0,0.00017118,2]
[394110137,1763296238779,-151.0,0.00017118,2]
[394110138,1763296238789,-334.897074,0.00017118,2]
[394110139,1763296238799,-151.0,0.00017118,2]
[394110140,1763296238808,-334.897074,0.00017118,2]
[394110141,1763296238819,-151.0,0.00017118,2]
[394110142,1763296238828,-151.0,0.00017118,2]
[394110143,1763296238838,-151.0,0.00017118,2]
[394110144,1763296238848,-151.0,0.00017118,2]
[394110145,1763296238858,-151.0,0.00017118,2]
[394110146,1763296238868,-151.0,0.00017118,2]
[394110147,1763296238878,-151.0,0.00017118,2]
[394110148,1763296238888,-151.0,0.00017118,2]
[394110149,1763296238898,-151.0,0.00017118,2]
[394110150,1763296238908,-151.0,0.00017118,2]
[394110151,1763296238918,-165.666462,0.00017118,2]
[394110152,1763296238928,-187.966846,0.00017118,2]
[394110153,1763296238937,-151.0,0.00017118,2]
[394110154,1763296238947,-151.0,0.00017118,2]
[394110155,1763296238957,-151.0,0.00017118,2]
[394110156,1763296238966,-227.374883,0.00017118,2]
[394110157,1763296238975,-151.0,0.00017118,2]
[394110158,1763296238984,-151.0,0.00017118,2]
[394110159,1763296238994,-174.497614,0.00017118,2]
[394110160,1763296239004,-174.497614,0.00017118,2]
[394110161,1763296239014,-174.497614,0.00017118,2]
[394110162,1763296239024,-174.497614,0.00017118,2]
[394110163,1763296239033,-151.0,0.00017118,2]
[394110164,1763296239043,-151.0,0.00017118,2]
[394110165,1763296239052,-151.0,0.00017118,2]
[394110166,1763296239061,-151.0,0.00017118,2]
[394110167,1763296239071,-151.0,0.00017118,2]
[394110168,1763296239081,-153.633799,0.00017118,2]
[394110169,1763296239090,-151.0,0.00017118,2]
[394110170,1763296239100,-174.497614,0.00017118,2]
[394110171,1763296239110,-174.497614,0.00017118,2]
[394110172,1763296239119,-151.0,0.00017118,2]
[394110173,1763296239129,-151.0,0.00017118,2]